[Event "Titled Tuesday Blitz March 28 Late 2023"]
[White "Gold_Ocean"]
[Black "Mazurkiewicz, Michal"]
[BlackFideId "1124943"]
[WhiteElo "2619"]
[BlackElo "2054"]
[Result "0-1"]
[Round "05"]
[TimeControl "180+2"]
[Date "2023.03.28"]
[WhiteClock "0:00:19"]
[BlackClock "0:00:18"]

1. d4 {[%clk 0:03:00]}  Nf6 {[%clk 0:02:59]} 2. Nc3 {[%clk 0:02:59]}  d5 {[%clk 0:02:59]} 3. Bf4 {[%clk 0:02:58]}  Bf5 {[%clk 0:02:59]} 4. Nf3 {[%clk 0:02:58]}  c6 {[%clk 0:03:00]} 5. e3 {[%clk 0:02:56]}  e6 {[%clk 0:03:00]} 6. Be2 {[%clk 0:02:56]}  Bd6 {[%clk 0:02:59]} 7. Bg3 {[%clk 0:02:56]}  Bxg3 {[%clk 0:02:58]} 8. hxg3 {[%clk 0:02:56]}  O-O {[%clk 0:02:57]} 9. Ne5 {[%clk 0:02:55]}  Nbd7 {[%clk 0:02:55]} 10. g4 {[%clk 0:02:51]}  Bg6 {[%clk 0:02:56]} 11. f4 {[%clk 0:02:50]}  Nxe5 {[%clk 0:02:51]} 12. dxe5 {[%clk 0:02:42]}  Ne4 {[%clk 0:02:51]} 13. Nxe4 {[%clk 0:02:40]}  Bxe4 {[%clk 0:02:51]} 14. O-O {[%clk 0:02:40]}  Qh4 {[%clk 0:02:50]} 15. Bf3 {[%clk 0:02:35]}  Rad8 {[%clk 0:02:43]} 16. c3 {[%clk 0:02:32]}  f6 {[%clk 0:02:37]} 17. exf6 {[%clk 0:02:29]}  Bxf3 {[%clk 0:02:29]} 18. Qxf3 {[%clk 0:02:27]}  Rxf6 {[%clk 0:02:30]} 19. g5 {[%clk 0:02:27]}  Rf7 {[%clk 0:02:16]} 20. Rad1 {[%clk 0:02:19]}  e5 {[%clk 0:02:11]} 21. g3 {[%clk 0:01:55]}  Qh3 {[%clk 0:02:11]} 22. Rd2 {[%clk 0:01:47]}  exf4 {[%clk 0:01:32]} 23. exf4 {[%clk 0:01:46]}  Re8 {[%clk 0:01:33]} 24. f5 {[%clk 0:01:22]}  Re5 {[%clk 0:01:14]} 25. Rdf2 {[%clk 0:01:03]}  g6 {[%clk 0:01:02]} 26. g4 {[%clk 0:00:53]}  Qh4 {[%clk 0:01:02]} 27. Qf4 {[%clk 0:00:47]}  Re4 {[%clk 0:01:03]} 28. Qb8+ {[%clk 0:00:30]}  Rf8 {[%clk 0:01:03]} 29. Qh2 {[%clk 0:00:22]}  Rxg4+ {[%clk 0:01:01]} 30. Rg2 {[%clk 0:00:22]}  Qxh2+ {[%clk 0:00:52]} 31. Kxh2 {[%clk 0:00:23]}  Rxg2+ {[%clk 0:00:52]} 32. Kxg2 {[%clk 0:00:24]}  Rxf5 {[%clk 0:00:52]} 33. Re1 {[%clk 0:00:24]}  Rxg5+ {[%clk 0:00:52]} 34. Kf3 {[%clk 0:00:25]}  Rf5+ {[%clk 0:00:53]} 35. Kg4 {[%clk 0:00:25]}  Kg7 {[%clk 0:00:49]} 36. Re8 {[%clk 0:00:24]}  h5+ {[%clk 0:00:46]} 37. Kg3 {[%clk 0:00:25]}  g5 {[%clk 0:00:45]} 38. Re6 {[%clk 0:00:22]}  Rf6 {[%clk 0:00:41]} 39. Re7+ {[%clk 0:00:23]}  Rf7 {[%clk 0:00:41]} 40. Re6 {[%clk 0:00:23]}  Kh7 {[%clk 0:00:38]} 41. Kg2 {[%clk 0:00:22]}  g4 {[%clk 0:00:37]} 42. Kg3 {[%clk 0:00:22]}  Rg7 {[%clk 0:00:33]} 43. Rf6 {[%clk 0:00:20]}  h4+ {[%clk 0:00:31]} 44. Kxh4 {[%clk 0:00:18]}  g3 {[%clk 0:00:32]} 45. Rf1 {[%clk 0:00:17]}  g2 {[%clk 0:00:32]} 46. Rg1 {[%clk 0:00:18]}  Kg8 {[%clk 0:00:32]} 47. Kh3 {[%clk 0:00:18]}  Kf7 {[%clk 0:00:33]} 48. Rxg2 {[%clk 0:00:19]}  Rxg2 {[%clk 0:00:33]} 49. Kxg2 {[%clk 0:00:20]}  Ke6 {[%clk 0:00:34]} 50. Kf3 {[%clk 0:00:20]}  Ke5 {[%clk 0:00:34]} 51. Ke3 {[%clk 0:00:21]}  c5 {[%clk 0:00:34]} 52. Kd3 {[%clk 0:00:22]}  b5 {[%clk 0:00:27]} 53. a3 {[%clk 0:00:20]}  a5 {[%clk 0:00:23]} 54. b3 {[%clk 0:00:20]}  c4+ {[%clk 0:00:21]} 55. bxc4 {[%clk 0:00:20]}  bxc4+ {[%clk 0:00:19]} 56. Ke3 {[%clk 0:00:21]}  a4 {[%clk 0:00:16]} 57. Ke2 {[%clk 0:00:16]}  Ke4 {[%clk 0:00:14]} 58. Kd2 {[%clk 0:00:15]}  Kf3 {[%clk 0:00:14]} 59. Kc1 {[%clk 0:00:13]}  Ke3 {[%clk 0:00:14]} 60. Kc2 {[%clk 0:00:14]}  Ke2 {[%clk 0:00:14]} 61. Kc1 {[%clk 0:00:14]}  Kd3 {[%clk 0:00:14]} 62. Kb2 {[%clk 0:00:15]}  Kd2 {[%clk 0:00:15]} 63. Kb1 {[%clk 0:00:15]}  Kxc3 {[%clk 0:00:16]} 64. Ka2 {[%clk 0:00:16]}  Kc2 {[%clk 0:00:16]} 65. Ka1 {[%clk 0:00:16]}  d4 {[%clk 0:00:16]} 66. Ka2 {[%clk 0:00:17]}  d3 {[%clk 0:00:17]} 67. Ka1 {[%clk 0:00:18]}  d2 {[%clk 0:00:17]} 68. Ka2 {[%clk 0:00:19]}  c3 {[%clk 0:00:18]} 69. Ka1 {[%clk 0:00:18]}  d1=Q+ {[%clk 0:00:18]} 70. Ka2 {[%clk 0:00:19]}  Qb1# {[%clk 0:00:18]} 0-1


[Site "https://www.chess.com"]

[Event "Titled Tuesday Blitz March 28 Late 2023"]
[White "Sochacki, Christophe"]
[Black "Yeritsyan, Hayk"]
[WhiteFideId "662569"]
[BlackFideId "13307320"]
[WhiteElo "2474"]
[BlackElo "2442"]
[Result "1-0"]
[Round "05"]
[TimeControl "180+2"]
[Date "2023.03.28"]
[WhiteClock "0:00:01"]
[BlackClock "0:00:08"]

1. e4 {[%clk 0:03:00]}  c6 {[%clk 0:02:54]} 2. Nf3 {[%clk 0:02:52]}  d5 {[%clk 0:02:46]} 3. exd5 {[%clk 0:02:53]}  cxd5 {[%clk 0:02:46]} 4. Ne5 {[%clk 0:02:53]}  Nc6 {[%clk 0:02:42]} 5. d4 {[%clk 0:02:52]}  Nf6 {[%clk 0:02:36]} 6. c3 {[%clk 0:02:34]}  Bf5 {[%clk 0:02:23]} 7. Bf4 {[%clk 0:02:14]}  e6 {[%clk 0:02:17]} 8. Nd2 {[%clk 0:02:14]}  Bd6 {[%clk 0:02:15]} 9. Bb5 {[%clk 0:02:00]}  O-O {[%clk 0:01:45]} 10. Bxc6 {[%clk 0:01:44]}  bxc6 {[%clk 0:01:45]} 11. Nxc6 {[%clk 0:01:44]}  Qc7 {[%clk 0:01:36]} 12. Bxd6 {[%clk 0:01:45]}  Qxd6 {[%clk 0:01:36]} 13. Na5 {[%clk 0:01:28]}  Rab8 {[%clk 0:01:29]} 14. Nab3 {[%clk 0:01:22]}  Bd3 {[%clk 0:01:26]} 15. Nf3 {[%clk 0:01:20]}  Bc4 {[%clk 0:01:15]} 16. Ne5 {[%clk 0:01:17]}  Rfc8 {[%clk 0:01:00]} 17. f3 {[%clk 0:01:12]}  a5 {[%clk 0:00:55]} 18. Nxa5 {[%clk 0:01:02]}  Rxb2 {[%clk 0:00:40]} 19. Naxc4 {[%clk 0:01:00]}  dxc4 {[%clk 0:00:27]} 20. O-O {[%clk 0:00:58]}  Nd5 {[%clk 0:00:24]} 21. Qe1 {[%clk 0:00:54]}  Nf4 {[%clk 0:00:20]} 22. Rf2 {[%clk 0:00:52]}  Rb7 {[%clk 0:00:10]} 23. Qe4 {[%clk 0:00:48]}  Nd5 {[%clk 0:00:09]} 24. Rc2 {[%clk 0:00:44]}  Qc7 {[%clk 0:00:07]} 25. Qe1 {[%clk 0:00:35]}  Rcb8 {[%clk 0:00:07]} 26. a4 {[%clk 0:00:29]}  h6 {[%clk 0:00:06]} 27. a5 {[%clk 0:00:29]}  Ra7 {[%clk 0:00:07]} 28. a6 {[%clk 0:00:28]}  Rba8 {[%clk 0:00:07]} 29. Rca2 {[%clk 0:00:28]}  Qd6 {[%clk 0:00:07]} 30. Nxc4 {[%clk 0:00:26]}  Qc6 {[%clk 0:00:06]} 31. Ne5 {[%clk 0:00:25]}  Qxc3 {[%clk 0:00:06]} 32. Qxc3 {[%clk 0:00:24]}  Nxc3 {[%clk 0:00:07]} 33. Rc2 {[%clk 0:00:20]}  Nd5 {[%clk 0:00:06]} 34. Rc6 {[%clk 0:00:17]}  Nb4 {[%clk 0:00:06]} 35. Rb6 {[%clk 0:00:17]}  Rxa6 {[%clk 0:00:05]} 36. Raxa6 {[%clk 0:00:16]}  Nxa6 {[%clk 0:00:06]} 37. Rb7 {[%clk 0:00:14]}  Rd8 {[%clk 0:00:05]} 38. Rxf7 {[%clk 0:00:08]}  Rxd4 {[%clk 0:00:04]} 39. Ra7 {[%clk 0:00:09]}  Nc5 {[%clk 0:00:04]} 40. Kf2 {[%clk 0:00:05]}  Nd3+ {[%clk 0:00:04]} 41. Ke3 {[%clk 0:00:05]}  Nxe5 {[%clk 0:00:02]} 42. Ra8+ {[%clk 0:00:06]}  Kf7 {[%clk 0:00:01]} 43. Kxd4 {[%clk 0:00:07]}  Nc6+ {[%clk 0:00:02]} 44. Kc5 {[%clk 0:00:07]}  Ne7 {[%clk 0:00:03]} 45. Kd6 {[%clk 0:00:06]}  Kf6 {[%clk 0:00:04]} 46. Rf8+ {[%clk 0:00:05]}  Kg6 {[%clk 0:00:04]} 47. Kxe7 {[%clk 0:00:05]}  Kh7 {[%clk 0:00:05]} 48. Kf7 {[%clk 0:00:05]}  g5 {[%clk 0:00:06]} 49. Rg8 {[%clk 0:00:06]}  h5 {[%clk 0:00:06]} 50. Rxg5 {[%clk 0:00:06]}  Kh6 {[%clk 0:00:07]} 51. h4 {[%clk 0:00:06]}  Kh7 {[%clk 0:00:08]} 52. Rxh5# {[%clk 0:00:01]} 1-0


[Site "https://www.chess.com"]

[Event "Titled Tuesday Blitz March 28 Late 2023"]
[White "Lewicki, Miroslaw"]
[Black "Hoffmann, Asa"]
[WhiteFideId "1113380"]
[BlackFideId "2001470"]
[WhiteElo "2212"]
[BlackElo "2117"]
[Result "1-0"]
[Round "05"]
[TimeControl "180+2"]
[Date "2023.03.28"]
[WhiteClock "0:00:35"]
[BlackClock "0:00:09"]

1. g3 {[%clk 0:02:55]}  d6 {[%clk 0:02:58]} 2. Bg2 {[%clk 0:02:56]}  c6 {[%clk 0:02:57]} 3. Nf3 {[%clk 0:02:57]}  e5 {[%clk 0:02:52]} 4. O-O {[%clk 0:02:58]}  Nf6 {[%clk 0:02:51]} 5. d3 {[%clk 0:02:58]}  Be7 {[%clk 0:02:47]} 6. Nc3 {[%clk 0:02:58]}  h6 {[%clk 0:02:43]} 7. e4 {[%clk 0:02:58]}  Be6 {[%clk 0:02:43]} 8. d4 {[%clk 0:02:56]}  Qc7 {[%clk 0:02:41]} 9. d5 {[%clk 0:02:54]}  Bg4 {[%clk 0:02:40]} 10. h3 {[%clk 0:02:53]}  Bh5 {[%clk 0:02:39]} 11. g4 {[%clk 0:02:51]}  Bg6 {[%clk 0:02:39]} 12. Nh4 {[%clk 0:02:52]}  Bh7 {[%clk 0:02:38]} 13. Nf5 {[%clk 0:02:52]}  Bxf5 {[%clk 0:02:37]} 14. exf5 {[%clk 0:02:52]}  c5 {[%clk 0:02:36]} 15. f4 {[%clk 0:02:50]}  Nbd7 {[%clk 0:02:32]} 16. h4 {[%clk 0:02:47]}  h5 {[%clk 0:02:24]} 17. fxe5 {[%clk 0:02:41]}  Nxe5 {[%clk 0:02:22]} 18. g5 {[%clk 0:02:41]}  Nfg4 {[%clk 0:02:21]} 19. Ne4 {[%clk 0:02:38]}  f6 {[%clk 0:02:08]} 20. c4 {[%clk 0:02:30]}  a6 {[%clk 0:02:00]} 21. a4 {[%clk 0:02:28]}  Nxc4 {[%clk 0:01:51]} 22. Qb3 {[%clk 0:02:28]}  Nce5 {[%clk 0:01:50]} 23. Bf4 {[%clk 0:02:27]}  O-O {[%clk 0:01:41]} 24. Rac1 {[%clk 0:02:21]}  b5 {[%clk 0:01:37]} 25. axb5 {[%clk 0:01:54]}  axb5 {[%clk 0:01:36]} 26. Qxb5 {[%clk 0:01:36]}  Rfb8 {[%clk 0:01:29]} 27. Qe2 {[%clk 0:01:35]}  Rb4 {[%clk 0:01:21]} 28. Bxe5 {[%clk 0:01:15]}  fxe5 {[%clk 0:01:04]} 29. f6 {[%clk 0:01:15]}  gxf6 {[%clk 0:00:45]} 30. gxf6 {[%clk 0:01:13]}  Bf8 {[%clk 0:00:45]} 31. Rf5 {[%clk 0:01:12]}  Qh7 {[%clk 0:00:42]} 32. Rcf1 {[%clk 0:00:57]}  Rab8 {[%clk 0:00:38]} 33. Rg5+ {[%clk 0:00:47]}  Kh8 {[%clk 0:00:37]} 34. f7 {[%clk 0:00:48]}  Bh6 {[%clk 0:00:25]} 35. Nxd6 {[%clk 0:00:37]}  Bxg5 {[%clk 0:00:18]} 36. f8=Q+ {[%clk 0:00:36]}  Rxf8 {[%clk 0:00:17]} 37. Rxf8+ {[%clk 0:00:37]}  Kg7 {[%clk 0:00:16]} 38. Rf7+ {[%clk 0:00:37]}  Kg8 {[%clk 0:00:16]} 39. Rxh7 {[%clk 0:00:36]}  Be3+ {[%clk 0:00:16]} 40. Qxe3 {[%clk 0:00:33]}  Nxe3 {[%clk 0:00:15]} 41. Rb7 {[%clk 0:00:34]}  e4 {[%clk 0:00:12]} 42. Rxb4 {[%clk 0:00:33]}  cxb4 {[%clk 0:00:12]} 43. Nxe4 {[%clk 0:00:34]}  Nf5 {[%clk 0:00:11]} 44. Nf6+ {[%clk 0:00:33]}  Kf7 {[%clk 0:00:11]} 45. Nxh5 {[%clk 0:00:34]}  Nxh4 {[%clk 0:00:10]} 46. Be4 {[%clk 0:00:34]}  Ke7 {[%clk 0:00:10]} 47. Kf2 {[%clk 0:00:34]}  Kd6 {[%clk 0:00:10]} 48. Kg3 {[%clk 0:00:34]}  Ke5 {[%clk 0:00:09]} 49. Kxh4 {[%clk 0:00:34]}  Kxe4 {[%clk 0:00:09]} 50. d6 {[%clk 0:00:34]}  b3 {[%clk 0:00:09]} 51. d7 {[%clk 0:00:34]}  Kd3 {[%clk 0:00:09]} 52. d8=Q+ {[%clk 0:00:35]}  Kc2 {[%clk 0:00:09]} 53. Qd4 {[%clk 0:00:35]} 1-0


[Site "https://www.chess.com"]

[Event "Titled Tuesday Blitz March 28 Late 2023"]
[White "Janaszak, Dawid"]
[Black "Xie, Bryan"]
[WhiteFideId "1119206"]
[BlackFideId "30941296"]
[WhiteElo "2220"]
[BlackElo "2033"]
[Result "1-0"]
[Round "05"]
[TimeControl "180+2"]
[Date "2023.03.28"]
[WhiteClock "0:01:58"]
[BlackClock "0:01:48"]

1. e4 {[%clk 0:03:00]}  c5 {[%clk 0:02:57]} 2. Nc3 {[%clk 0:03:00]}  Nc6 {[%clk 0:02:57]} 3. Bb5 {[%clk 0:02:59]}  Nd4 {[%clk 0:02:57]} 4. Nf3 {[%clk 0:02:59]}  a6 {[%clk 0:02:57]} 5. Bd3 {[%clk 0:02:59]}  Nc6 {[%clk 0:02:55]} 6. O-O {[%clk 0:02:56]}  g6 {[%clk 0:02:41]} 7. b3 {[%clk 0:02:55]}  Bg7 {[%clk 0:02:41]} 8. Bb2 {[%clk 0:02:56]}  d6 {[%clk 0:02:42]} 9. Re1 {[%clk 0:02:49]}  Nf6 {[%clk 0:02:40]} 10. e5 {[%clk 0:02:47]}  dxe5 {[%clk 0:02:33]} 11. Nxe5 {[%clk 0:02:46]}  Nxe5 {[%clk 0:02:33]} 12. Rxe5 {[%clk 0:02:47]}  Qc7 {[%clk 0:02:29]} 13. Qe1 {[%clk 0:02:27]}  Ng4 {[%clk 0:02:17]} 14. Nd5 {[%clk 0:02:24]}  Bxe5 {[%clk 0:02:03]} 15. Nxc7+ {[%clk 0:02:23]}  Bxc7 {[%clk 0:02:02]} 16. Bxh8 {[%clk 0:02:22]}  Bxh2+ {[%clk 0:02:03]} 17. Kh1 {[%clk 0:02:16]}  Bd6 {[%clk 0:02:01]} 18. Be2 {[%clk 0:02:05]}  Nh6 {[%clk 0:01:58]} 19. Bf3 {[%clk 0:01:59]}  Nf5 {[%clk 0:01:48]} 20. Be5 {[%clk 0:01:58]} 1-0


[Site "https://www.chess.com"]

[Event "Titled Tuesday Blitz March 28 Late 2023"]
[White "Smith, Garrett L"]
[Black "Mendez Fortes, Eduardo Jesus"]
[WhiteFideId "2024829"]
[BlackFideId "3502376"]
[WhiteElo "2323"]
[BlackElo "2307"]
[Result "1/2-1/2"]
[Round "05"]
[TimeControl "180+2"]
[Date "2023.03.28"]
[WhiteClock "0:00:18"]
[BlackClock "0:00:15"]

1. e4 {[%clk 0:02:59]}  c5 {[%clk 0:03:00]} 2. a3 {[%clk 0:02:59]}  Nc6 {[%clk 0:02:57]} 3. b4 {[%clk 0:02:58]}  cxb4 {[%clk 0:02:57]} 4. axb4 {[%clk 0:02:58]}  Nxb4 {[%clk 0:02:56]} 5. d4 {[%clk 0:02:58]}  d5 {[%clk 0:02:55]} 6. c3 {[%clk 0:02:58]}  Nc6 {[%clk 0:02:55]} 7. exd5 {[%clk 0:02:58]}  Qxd5 {[%clk 0:02:56]} 8. Na3 {[%clk 0:02:58]}  e5 {[%clk 0:02:53]} 9. Nb5 {[%clk 0:02:57]}  Qd8 {[%clk 0:02:52]} 10. d5 {[%clk 0:02:37]}  Nb8 {[%clk 0:02:45]} 11. d6 {[%clk 0:02:26]}  Na6 {[%clk 0:02:29]} 12. Rxa6 {[%clk 0:02:25]}  bxa6 {[%clk 0:02:29]} 13. Nc7+ {[%clk 0:02:25]}  Kd7 {[%clk 0:02:29]} 14. Qa4+ {[%clk 0:02:17]}  Kxd6 {[%clk 0:02:27]} 15. Ne8+ {[%clk 0:01:38]}  Ke7 {[%clk 0:02:15]} 16. Ba3+ {[%clk 0:01:35]}  Ke6 {[%clk 0:02:15]} 17. Qc6+ {[%clk 0:01:23]}  Kf5 {[%clk 0:02:00]} 18. Bxf8 {[%clk 0:01:17]}  Nf6 {[%clk 0:01:35]} 19. Nxg7+ {[%clk 0:01:12]}  Kg6 {[%clk 0:01:33]} 20. Qxa8 {[%clk 0:00:47]}  Rxf8 {[%clk 0:01:31]} 21. Qxa7 {[%clk 0:00:44]}  Kxg7 {[%clk 0:01:26]} 22. Nf3 {[%clk 0:00:44]}  Qd5 {[%clk 0:01:21]} 23. Be2 {[%clk 0:00:40]}  Qe4 {[%clk 0:01:21]} 24. Qe3 {[%clk 0:00:38]}  Qxe3 {[%clk 0:01:08]} 25. fxe3 {[%clk 0:00:38]}  Re8 {[%clk 0:01:08]} 26. O-O {[%clk 0:00:38]}  Nd5 {[%clk 0:01:05]} 27. Ra1 {[%clk 0:00:34]}  Nxc3 {[%clk 0:01:01]} 28. Bxa6 {[%clk 0:00:34]}  Bg4 {[%clk 0:00:54]} 29. Bc4 {[%clk 0:00:33]}  Bxf3 {[%clk 0:00:51]} 30. gxf3 {[%clk 0:00:32]}  Rc8 {[%clk 0:00:52]} 31. Bb3 {[%clk 0:00:31]}  Rb8 {[%clk 0:00:52]} 32. Bc4 {[%clk 0:00:30]}  Rb4 {[%clk 0:00:50]} 33. Bd3 {[%clk 0:00:28]}  e4 {[%clk 0:00:38]} 34. Bxe4 {[%clk 0:00:22]}  Nxe4 {[%clk 0:00:36]} 35. fxe4 {[%clk 0:00:23]}  Rxe4 {[%clk 0:00:36]} 36. Kf2 {[%clk 0:00:24]}  h5 {[%clk 0:00:36]} 37. Rg1+ {[%clk 0:00:24]}  Kf6 {[%clk 0:00:35]} 38. Kf3 {[%clk 0:00:25]}  Ra4 {[%clk 0:00:35]} 39. Rb1 {[%clk 0:00:25]}  Ra5 {[%clk 0:00:32]} 40. Rb6+ {[%clk 0:00:26]}  Kg5 {[%clk 0:00:32]} 41. Rb4 {[%clk 0:00:26]}  f5 {[%clk 0:00:32]} 42. Kg3 {[%clk 0:00:27]}  Ra6 {[%clk 0:00:30]} 43. h4+ {[%clk 0:00:27]}  Kg6 {[%clk 0:00:30]} 44. Rb8 {[%clk 0:00:27]}  Re6 {[%clk 0:00:27]} 45. Rc8 {[%clk 0:00:27]}  Rxe3+ {[%clk 0:00:26]} 46. Kg2 {[%clk 0:00:27]}  f4 {[%clk 0:00:23]} 47. Rb8 {[%clk 0:00:22]}  Rg3+ {[%clk 0:00:20]} 48. Kh2 {[%clk 0:00:20]}  Kf5 {[%clk 0:00:20]} 49. Rb2 {[%clk 0:00:11]}  Kg4 {[%clk 0:00:20]} 50. Rb8 {[%clk 0:00:11]}  Kxh4 {[%clk 0:00:20]} 51. Rb4 {[%clk 0:00:12]}  Kg4 {[%clk 0:00:20]} 52. Rb5 {[%clk 0:00:13]}  Ra3 {[%clk 0:00:20]} 53. Rb8 {[%clk 0:00:13]}  Ra2+ {[%clk 0:00:20]} 54. Kg1 {[%clk 0:00:13]}  Kg3 {[%clk 0:00:19]} 55. Rg8+ {[%clk 0:00:14]}  Kf3 {[%clk 0:00:19]} 56. Rh8 {[%clk 0:00:14]}  Ra1+ {[%clk 0:00:19]} 57. Kh2 {[%clk 0:00:14]}  Ra2+ {[%clk 0:00:20]} 58. Kg1 {[%clk 0:00:14]}  Ra5 {[%clk 0:00:20]} 59. Re8 {[%clk 0:00:14]}  h4 {[%clk 0:00:20]} 60. Rh8 {[%clk 0:00:14]}  Kg3 {[%clk 0:00:18]} 61. Rg8+ {[%clk 0:00:15]}  Kh3 {[%clk 0:00:18]} 62. Rh8 {[%clk 0:00:15]}  Ra1+ {[%clk 0:00:18]} 63. Kf2 {[%clk 0:00:16]}  Ra3 {[%clk 0:00:18]} 64. Rf8 {[%clk 0:00:15]}  f3 {[%clk 0:00:15]} 65. Rxf3+ {[%clk 0:00:15]}  Rxf3+ {[%clk 0:00:13]} 66. Kxf3 {[%clk 0:00:16]}  Kh2 {[%clk 0:00:14]} 67. Kf2 {[%clk 0:00:17]}  Kh1 {[%clk 0:00:13]} 68. Kf1 {[%clk 0:00:17]}  h3 {[%clk 0:00:14]} 69. Kf2 {[%clk 0:00:18]}  h2 {[%clk 0:00:15]} 70. Kf1 {[%clk 0:00:18]} 1/2-1/2


[Site "https://www.chess.com"]

[Event "Titled Tuesday Blitz March 28 Late 2023"]
[White "MKlose11"]
[Black "Nery Junior, Jose Antonio"]
[BlackFideId "2104822"]
[WhiteElo "2545"]
[BlackElo "2197"]
[Result "1-0"]
[Round "05"]
[TimeControl "180+2"]
[Date "2023.03.28"]
[WhiteClock "0:00:22"]
[BlackClock "0:00:01"]

1. e4 {[%clk 0:02:57]}  c5 {[%clk 0:02:59]} 2. Nc3 {[%clk 0:02:57]}  e6 {[%clk 0:02:55]} 3. g3 {[%clk 0:02:58]}  a6 {[%clk 0:02:54]} 4. Bg2 {[%clk 0:02:58]}  b5 {[%clk 0:02:54]} 5. d3 {[%clk 0:02:58]}  Bb7 {[%clk 0:02:55]} 6. Nh3 {[%clk 0:02:58]}  g6 {[%clk 0:02:45]} 7. O-O {[%clk 0:02:58]}  Bg7 {[%clk 0:02:45]} 8. f4 {[%clk 0:02:44]}  Ne7 {[%clk 0:02:42]} 9. e5 {[%clk 0:02:41]}  Bxg2 {[%clk 0:02:36]} 10. Kxg2 {[%clk 0:02:42]}  d5 {[%clk 0:02:35]} 11. exd6 {[%clk 0:02:43]}  Qxd6 {[%clk 0:02:35]} 12. Ne4 {[%clk 0:02:43]}  Qc7 {[%clk 0:02:30]} 13. Qf3 {[%clk 0:02:40]}  Ra7 {[%clk 0:02:14]} 14. a4 {[%clk 0:02:38]}  O-O {[%clk 0:02:11]} 15. axb5 {[%clk 0:02:38]}  axb5 {[%clk 0:02:12]} 16. Rxa7 {[%clk 0:02:38]}  Qxa7 {[%clk 0:02:13]} 17. Be3 {[%clk 0:02:38]}  Nd7 {[%clk 0:02:12]} 18. b4 {[%clk 0:02:37]}  Qa2 {[%clk 0:01:44]} 19. Nxc5 {[%clk 0:02:34]}  Nf6 {[%clk 0:01:06]} 20. Rf2 {[%clk 0:02:20]}  Nfd5 {[%clk 0:00:57]} 21. c4 {[%clk 0:02:17]}  Nxe3+ {[%clk 0:00:55]} 22. Qxe3 {[%clk 0:02:13]}  Qa3 {[%clk 0:00:53]} 23. Nd7 {[%clk 0:01:49]}  Rd8 {[%clk 0:00:49]} 24. Ne5 {[%clk 0:01:37]}  Qxb4 {[%clk 0:00:48]} 25. Ng5 {[%clk 0:01:24]}  bxc4 {[%clk 0:00:19]} 26. Ngxf7 {[%clk 0:01:22]}  Qb7+ {[%clk 0:00:19]} 27. Kh3 {[%clk 0:01:13]}  Rf8 {[%clk 0:00:17]} 28. dxc4 {[%clk 0:00:59]}  Bxe5 {[%clk 0:00:16]} 29. Nxe5 {[%clk 0:00:58]}  Nf5 {[%clk 0:00:15]} 30. Qf3 {[%clk 0:00:55]}  Qxf3 {[%clk 0:00:14]} 31. Rxf3 {[%clk 0:00:55]}  Rc8 {[%clk 0:00:15]} 32. Ra3 {[%clk 0:00:54]}  Rc7 {[%clk 0:00:14]} 33. Ra6 {[%clk 0:00:53]}  Nd4 {[%clk 0:00:13]} 34. Rd6 {[%clk 0:00:50]}  Nc2 {[%clk 0:00:07]} 35. Rxe6 {[%clk 0:00:49]}  Kf8 {[%clk 0:00:06]} 36. Ra6 {[%clk 0:00:47]}  Ne3 {[%clk 0:00:06]} 37. Ra4 {[%clk 0:00:46]}  Ke7 {[%clk 0:00:05]} 38. Ra3 {[%clk 0:00:44]}  Nf5 {[%clk 0:00:05]} 39. Kg4 {[%clk 0:00:42]}  Nd6 {[%clk 0:00:05]} 40. Rc3 {[%clk 0:00:35]}  h5+ {[%clk 0:00:06]} 41. Kf3 {[%clk 0:00:35]}  Nb5 {[%clk 0:00:04]} 42. Rc1 {[%clk 0:00:31]}  Nd4+ {[%clk 0:00:05]} 43. Ke4 {[%clk 0:00:31]}  Nf5 {[%clk 0:00:05]} 44. Nxg6+ {[%clk 0:00:31]}  Kf6 {[%clk 0:00:06]} 45. Ne5 {[%clk 0:00:32]}  Nd6+ {[%clk 0:00:06]} 46. Kd5 {[%clk 0:00:32]}  Nf5 {[%clk 0:00:05]} 47. c5 {[%clk 0:00:31]}  Ne3+ {[%clk 0:00:05]} 48. Ke4 {[%clk 0:00:31]}  Nf5 {[%clk 0:00:04]} 49. c6 {[%clk 0:00:31]}  Nd6+ {[%clk 0:00:04]} 50. Kd5 {[%clk 0:00:30]}  Nf5 {[%clk 0:00:04]} 51. Kc5 {[%clk 0:00:29]}  h4 {[%clk 0:00:02]} 52. Kb6 {[%clk 0:00:29]}  Rc8 {[%clk 0:00:01]} 53. c7 {[%clk 0:00:28]}  Nd6 {[%clk 0:00:01]} 54. Rd1 {[%clk 0:00:25]}  Ke6 {[%clk 0:00:01]} 55. gxh4 {[%clk 0:00:22]} 1-0


[Site "https://www.chess.com"]